bitfinex/quotes_SOLUSD_20241024
["timestamp","ask_amount","ask_price","bid_price","bid_amount"]
[1729770349727,0.12549,174.02,174.01,18.52866454]
[1729770349920,0.12549,174.02,174.0,18.52866454]
[1729770350231,0.12549,174.02,173.91,15.6249]
[1729770350232,5.7461,174.03,174.01,18.52866454]
[1729770350417,5.7461,174.03,174.0,18.52866454]
[1729770350614,20.0,174.03,174.0,18.52866454]
[1729770351215,20.0,174.03,174.0,18.62866454]
[1729770352125,25.7462,174.03,174.0,18.62866454]
[1729770352431,25.7462,174.03,174.0,18.52866454]
[1729770352611,0.12549,174.02,173.97,0.1]
[1729770352816,0.12549,174.02,173.98,18.52866454]
[1729770353927,0.12549,174.02,173.98,18.62866454]
[1729770354126,5.87219,174.02,173.99,0.1]
[1729770354329,5.87219,174.02,173.98,18.62866454]
[1729770354531,5.87219,174.02,173.99,0.1]
[1729770355370,5.87219,174.02,173.98,18.62866454]
[1729770355712,5.87219,174.02,173.99,0.1]
[1729770355918,5.87219,174.02,173.98,18.62866454]
[1729770356744,5.87219,174.02,173.98,18.72866454]
[1729770357127,5.87219,174.02,173.98,18.52866454]
[1729770357311,5.87219,174.02,173.98,18.62866454]
[1729770357517,5.87219,174.02,173.98,18.52866454]
[1729770357828,5.87219,174.02,173.98,18.62866454]
[1729770358032,5.87219,174.02,173.98,0.2]
[1729770358435,0.12549,174.0,173.96,0.1]
[1729770358734,5.7474,173.99,173.95,0.1]
[1729770358925,5.7474,173.99,173.94,18.72866454]
[1729770359110,5.7474,173.99,173.95,0.1]
[1729770359838,5.7474,173.99,173.96,0.1]
[1729770360213,0.12549,173.98,173.94,0.2]
[1729770360518,0.12549,173.98,173.94,18.52866454]
[1729770360913,5.7481,173.97,173.94,18.72866454]
[1729770361114,5.7481,173.97,173.95,0.1]
[1729770361327,5.7481,173.97,173.92,0.2]
[1729770361530,5.7481,173.97,173.92,18.72866454]
[1729770361726,20.12549,173.96,173.91,0.1]
[1729770362033,20.12549,173.96,173.91,18.62866454]
[1729770362230,38.65415454,173.96,173.92,0.1]
[1729770362429,38.65415454,173.96,173.9,18.72866454]
[1729770362637,38.65415454,173.96,173.92,0.1]
[1729770362821,38.65415454,173.96,173.9,18.72866454]
[1729770363017,0.12549,173.94,173.9,18.72866454]
[1729770363338,0.12549,173.94,173.92,0.1]
[1729770364642,5.87459,173.94,173.92,0.1]
[1729770366736,5.87459,173.94,173.91,18.52866454]
[1729770366946,5.87459,173.94,173.92,0.1]
[1729770367438,5.87459,173.94,173.91,18.52866454]
[1729770367640,5.7487,173.95,173.92,0.1]
[1729770368032,0.12549,173.95,173.92,18.62866454]
[1729770368342,22.819,173.99,173.94,18.72866454]
[1729770368343,16.5988,173.99,173.94,18.72866454]
[1729770368645,25.06996454,174.03,173.98,18.52866454]
[1729770368846,0.12549,174.01,173.98,18.52866454]
[1729770369337,0.12549,174.02,173.98,18.52866454]
[1729770369936,5.7467,174.01,173.98,18.52866454]
[1729770371242,16.1235,174.04,173.99,18.52866454]
[1729770371446,28.06411917,174.03,173.99,18.52866454]
[1729770371652,4.41272517,174.02,173.99,18.52866454]
[1729770371825,0.12549,174.02,173.99,18.52866454]
[1729770372435,25.87219,174.02,173.99,18.52866454]
[1729770375351,20.0,174.03,174.0,18.62866454]
[1729770375530,5.7454,174.06,174.01,18.62866454]
[1729770375848,0.12549,174.04,174.01,18.62866454]
[1729770376527,0.12549,174.04,174.01,18.72866454]
[1729770376718,5.87129,174.04,174.01,18.62866454]
[1729770376917,5.87129,174.04,174.01,18.72866454]
[1729770377245,5.87129,174.04,174.01,18.62866454]
[1729770377448,5.87129,174.04,174.01,18.72866454]
[1729770378124,20.12549,174.06,174.01,18.72866454]
[1729770378446,0.12549,174.04,174.01,18.72866454]
[1729770378645,4.29423149,174.03,174.01,18.62866454]
[1729770378819,5.87139,174.04,174.01,18.72866454]
[1729770379025,4.29421875,174.03,174.01,18.72866454]
[1729770379227,5.87139,174.04,174.01,18.72866454]
[1729770379424,4.29622009,174.03,174.01,18.72866454]
[1729770379642,5.87139,174.04,174.01,18.72866454]
[1729770379845,4.29621942,174.03,174.01,18.72866454]
[1729770380023,5.87139,174.04,174.01,18.72866454]
[1729770380223,4.29621942,174.03,174.01,18.72866454]
[1729770380444,4.29621942,174.02,174.01,0.2]
[1729770380633,4.29621942,174.02,174.01,0.1]
[1729770381246,4.29621942,174.02,174.01,0.2]
[1729770381427,4.29621942,174.03,174.01,0.1]
[1729770381633,20.0,174.01,173.97,0.1]
[1729770381839,20.0,174.01,173.97,0.2]
[1729770382024,4.29871104,174.0,173.96,0.2]
[1729770382337,18.65415454,173.99,173.95,0.2]
[1729770382649,4.29871104,173.98,173.95,0.2]
[1729770383248,4.29871104,173.98,173.96,0.1]
[1729770383426,4.29871104,173.98,173.95,18.72866454]
[1729770383755,10.04651104,173.98,173.96,0.1]
[1729770384050,4.29871104,173.97,173.96,0.1]
[1729770384557,4.29871104,173.97,173.95,18.72866454]
[1729770385048,4.29871104,173.97,173.96,0.1]
[1729770385430,5.7478,173.98,173.96,0.1]
[1729770385951,4.29890223,173.97,173.96,0.1]
[1729770386250,5.7478,173.98,173.96,0.1]
[1729770389055,5.7478,173.98,173.95,18.72866454]
[1729770389355,5.7478,173.98,173.95,18.62866454]
[1729770389659,5.7478,173.98,173.95,18.72866454]
[1729770390055,4.29822951,173.97,173.95,18.72866454]
[1729770390359,5.7478,173.98,173.95,0.2]
[1729770390560,4.29805924,173.97,173.95,0.2]
[1729770390857,5.7478,173.98,173.95,0.2]
[1729770392757,4.29777882,173.97,173.95,0.2]
[1729770392962,5.7478,173.98,173.95,0.2]
[1729770393138,4.29779258,173.97,173.95,0.2]
[1729770393339,5.7478,173.98,173.95,0.2]
[1729770394845,5.7478,173.98,173.95,0.1]
[1729770395046,4.29786459,173.97,173.95,0.2]
[1729770395261,5.7478,173.98,173.95,0.2]
[1729770396061,5.7478,173.98,173.95,0.1]
[1729770396261,5.7478,173.98,173.95,0.2]
[1729770396651,4.29795611,173.97,173.95,0.2]
[1729770396851,5.7478,173.98,173.95,0.2]
[1729770397052,4.29799252,173.97,173.95,0.2]
[1729770397241,5.7478,173.98,173.95,0.2]
[1729770397543,4.29808583,173.97,173.95,0.2]
[1729770397743,5.7478,173.98,173.95,0.2]
[1729770398042,4.29808583,173.97,173.95,0.1]
[1729770398260,5.7478,173.98,173.95,0.2]
[1729770398445,4.29828394,173.97,173.95,0.2]
[1729770398650,5.7478,173.98,173.95,0.2]
[1729770398836,4.29828462,173.97,173.95,0.2]
[1729770399040,5.7478,173.98,173.95,0.2]
[1729770399260,4.29828831,173.97,173.95,0.2]
[1729770399462,5.7478,173.98,173.95,0.2]
[1729770399655,4.2984711,173.97,173.95,0.2]
[1729770399958,5.7478,173.98,173.95,0.1]
[1729770400262,4.29844696,173.97,173.95,0.1]
[1729770400463,5.7478,173.98,173.95,0.1]
[1729770400657,18.52866454,173.96,173.9,0.2]
[1729770400957,0.12549,173.94,173.9,18.62866454]
[1729770401457,0.12549,173.94,173.9,18.72866454]
[1729770401657,5.87459,173.94,173.9,18.72866454]
[1729770403062,5.87459,173.94,173.9,18.62866454]
[1729770403252,5.87459,173.94,173.9,0.2]
[1729770404067,5.87459,173.94,173.9,0.1]
[1729770404758,5.87459,173.94,173.9,0.2]
[1729770406349,5.87459,173.94,173.9,0.1]
[1729770406549,5.87459,173.94,173.91,0.1]
[1729770406845,5.87459,173.94,173.84,17.15152984]
[1729770406846,0.12549,173.91,173.88,0.1]
[1729770407049,18.65415454,173.91,173.87,0.2]
[1729770407944,0.12549,173.91,173.89,0.1]
[1729770408345,5.87579,173.91,173.89,0.1]
[1729770409069,5.87579,173.91,173.88,0.1]
[1729770409248,5.87579,173.91,173.89,0.1]
[1729770411572,18.52866454,173.93,173.89,0.1]
[1729770411753,20.0,173.94,173.9,18.62866454]
[1729770411953,0.12549,173.93,173.9,18.52866454]
[1729770412153,0.12549,173.93,173.9,18.62866454]
[1729770412551,0.12549,173.94,173.9,18.62866454]
[1729770412962,0.12549,173.92,173.9,18.62866454]
[1729770413273,0.12549,173.92,173.9,0.1]
[1729770413586,0.12549,173.92,173.9,18.62866454]
[1729770414179,0.12549,173.92,173.9,0.1]
[1729770414666,0.12549,173.92,173.89,18.72866454]
[1729770415162,0.12549,173.92,173.9,0.1]
[1729770416771,0.12549,173.92,173.9,18.52866454]
[1729770416968,0.12549,173.92,173.9,18.62866454]
[1729770418074,23.902374,173.95,173.91,18.62866454]
[1729770418254,20.0,173.96,173.93,18.52866454]
[1729770418454,20.0,173.96,173.92,18.62866454]
[1729770419377,0.12549,173.95,173.92,18.62866454]
[1729770419858,0.12549,173.95,173.91,0.2]
[1729770420056,0.12549,173.95,173.91,18.72866454]
[1729770421576,5.87429,173.95,173.92,0.1]
[1729770422378,5.87429,173.95,173.91,18.72866454]
[1729770422679,5.87429,173.95,173.92,18.52866454]
[1729770423384,5.87429,173.95,173.92,18.62866454]
[1729770425173,5.87429,173.95,173.91,0.1]
[1729770425405,5.87429,173.95,173.91,18.72866454]
[1729770425680,5.87429,173.95,173.92,0.1]
[1729770425872,5.87429,173.95,173.91,18.62866454]
[1729770426178,23.902374,173.94,173.89,0.1]
[1729770426378,0.12549,173.92,173.88,0.1]
[1729770426564,0.12549,173.92,173.89,18.62866454]
[1729770426779,0.12549,173.92,173.89,0.1]
[1729770426979,20.0,173.93,173.84,16.1516]
[1729770426980,0.12549,173.93,173.91,18.62866454]
[1729770427182,5.87499,173.93,173.91,18.62866454]
[1729770427577,16.3452,173.97,173.92,18.52866454]
[1729770427773,30.04982723,173.96,173.92,18.62866454]
[1729770427977,4.30112723,173.95,173.92,18.62866454]
[1729770428175,0.12549,173.95,173.92,18.62866454]
[1729770428603,0.12549,173.95,173.92,18.52866454]
[1729770429900,5.87429,173.95,173.92,18.62866454]
[1729770430803,0.12549,173.95,173.93,18.52866454]
[1729770431800,5.87419,173.95,173.92,18.62866454]
[1729770432998,5.87419,173.95,173.92,0.1]
[1729770433302,25.7485,173.96,173.93,18.52866454]
[1729770433602,4.30217237,173.95,173.93,18.52866454]
[1729770433796,0.12549,173.95,173.94,18.52866454]
[1729770434005,4.30208865,173.95,173.94,18.52866454]
[1729770434177,4.30208865,173.95,173.94,18.72866454]
[1729770434504,5.747,174.01,173.96,0.1]
[1729770434801,0.12549,173.99,173.96,0.1]
[1729770434997,4.30171297,173.98,173.96,0.1]
[1729770435195,0.12549,173.99,173.97,18.52866454]
[1729770435503,5.87219,174.01,173.98,18.52866454]
[1729770435682,0.12549,173.99,173.98,18.52866454]
[1729770435883,4.42657333,173.99,173.98,18.52866454]
[1729770436282,0.12549,173.99,173.98,18.52866454]
[1729770436602,4.30050602,173.99,173.98,18.62866454]
[1729770437303,4.30050602,173.99,173.98,18.72866454]
[1729770437511,0.4846061,174.04,173.98,18.72866454]
[1729770437713,4.29929879,174.03,174.02,18.52866454]
[1729770438380,4.29929879,174.03,174.01,18.52866454]
[1729770438575,6.2304061,174.04,174.01,18.52866454]
[1729770438803,4.29716296,174.03,174.0,0.2]
[1729770439102,0.12549,174.03,174.0,18.72866454]
[1729770439616,0.12549,174.03,174.01,18.52866454]
[1729770440605,5.87179,174.03,174.0,18.52866454]
[1729770440803,5.87179,174.03,173.99,18.72866454]
[1729770441000,4.2943653,174.02,173.99,18.62866454]
[1729770441207,5.87179,174.03,174.0,18.52866454]
[1729770441795,5.87179,174.03,173.99,18.62866454]
[1729770442090,5.87179,174.03,174.0,0.1]
[1729770442797,5.87179,174.03,173.99,0.1]
[1729770443005,5.87179,174.03,174.0,0.1]
[1729770444201,5.87179,174.03,173.99,18.52866454]
[1729770444202,5.87179,174.03,173.99,18.62866454]
[1729770444408,5.87179,174.03,174.0,0.1]
[1729770444588,5.87179,174.03,173.99,18.62866454]
[1729770444795,5.87179,174.03,174.0,0.1]
[1729770445810,5.87179,174.03,174.0,18.62866454]
[1729770446615,5.87179,174.03,174.0,18.52866454]
[1729770446803,5.87179,174.03,174.0,18.62866454]
[1729770447617,5.87179,174.03,174.0,0.1]
[1729770448407,5.87179,174.03,173.99,18.62866454]
[1729770448611,5.87179,174.03,174.0,18.62866454]
[1729770449416,0.12549,174.03,174.0,18.62866454]
[1729770449914,5.87159,174.03,174.0,18.62866454]
[1729770450102,5.87159,174.03,174.0,18.52866454]
[1729770450428,5.87159,174.03,174.0,18.62866454]
[1729770450911,5.87159,174.03,174.0,18.52866454]
[1729770451207,5.87159,174.03,174.0,18.62866454]
[1729770451589,23.902374,174.02,174.0,18.52866454]
[1729770452823,5.7467,174.02,174.0,18.62866454]
[1729770453008,5.7467,174.02,174.0,18.52866454]
[1729770453819,0.12549,174.01,174.0,18.52866454]
[1729770454217,0.12549,174.01,174.0,18.62866454]
[1729770454526,0.12549,174.01,174.0,18.52866454]
[1729770454703,0.12549,174.01,174.0,18.62866454]
[1729770458420,5.87159,174.03,174.0,18.62866454]
[1729770462023,5.87159,174.03,174.0,18.52866454]
[1729770462227,5.87159,174.03,174.0,18.62866454]
[1729770463531,5.87159,174.03,174.0,18.52866454]
[1729770463901,5.87159,174.03,174.0,18.62866454]
[1729770464210,5.87159,174.03,174.0,18.52866454]
[1729770465233,5.87159,174.03,174.0,18.62866454]
[1729770466026,4.87159,174.03,174.0,18.62866454]
[1729770466622,4.87159,174.03,174.0,18.52866454]
[1729770466833,4.87159,174.03,174.0,18.62866454]
[1729770468633,4.87159,174.03,174.0,18.52866454]
[1729770468930,4.87159,174.03,174.0,18.62866454]
[1729770469123,4.87159,174.03,173.98,0.1]
[1729770469124,4.87159,174.03,173.99,18.62866454]
[1729770469527,0.12549,174.01,173.97,0.2]
[1729770469729,20.12549,174.01,173.97,0.1]
[1729770469938,0.12549,173.99,173.97,0.1]
[1729770470536,38.65415454,173.99,173.96,0.1]
[1729770470830,4.29515364,173.98,173.96,0.1]
[1729770471030,38.65415454,173.99,173.96,0.1]
[1729770471329,10.04285364,173.98,173.96,0.1]
[1729770471540,5.7477,173.98,173.96,0.1]
[1729770472612,5.7477,173.98,173.95,18.62866454]
[1729770472824,20.12549,173.99,173.96,18.62866454]
[1729770473023,25.87299,173.99,173.96,18.62866454]
[1729770473424,4.29740765,173.98,173.96,18.62866454]
[1729770473625,25.87299,173.99,173.96,18.62866454]
[1729770474013,25.87299,173.99,173.96,0.1]
[1729770474336,4.29740706,173.98,173.96,0.1]
[1729770474529,25.87299,173.99,173.95,18.62866454]
[1729770474826,4.29822521,173.98,173.95,18.62866454]
[1729770475033,25.87299,173.99,173.95,18.62866454]
[1729770475332,4.29822573,173.98,173.96,0.1]
[1729770475540,25.87299,173.99,173.96,0.1]
[1729770475715,4.2991131,173.98,173.96,0.1]
[1729770475914,49.775364,173.99,173.98,5.922223]
[1729770476225,54.0744771,173.99,173.98,5.922223]
[1729770477739,54.07614831,173.99,173.98,5.922223]
[1729770478941,72.60481285,173.99,173.98,5.922223]
[1729770481044,72.60766885,173.99,173.98,5.922223]
[1729770482744,54.07900431,173.99,173.98,5.922223]
[1729770484050,49.775364,173.99,173.98,5.922223]
[1729770484222,54.07804011,173.99,173.98,5.922223]
[1729770485527,54.07766277,173.99,173.98,5.922223]
[1729770486342,72.60632731,173.99,173.98,5.922223]
[1729770487134,72.73181731,173.99,173.98,5.922223]
[1729770489235,72.73181731,173.99,173.98,2.957523]
[1729770489435,108.73085184,173.99,173.98,2.957523]
[1729770489639,108.68761496,173.99,173.98,2.957523]
[1729770494054,111.60567787,173.99,173.98,2.957523]
[1729770496048,125.97427787,173.99,173.88,0.1]
[1729770496256,0.12549,173.91,173.88,0.1]
[1729770497050,0.12549,173.91,173.87,18.72866454]
[1729770497257,0.12549,173.91,173.89,0.1]
[1729770497435,24.40425454,173.91,173.89,0.1]
[1729770497639,5.87559,173.91,173.89,0.1]
[1729770498554,24.40425454,173.91,173.87,0.2]
[1729770499960,24.40425454,173.91,173.88,0.1]
[1729770500354,24.40425454,173.91,173.89,0.1]
[1729770500355,0.12549,173.91,173.89,0.1]
[1729770500756,0.12549,173.91,173.87,18.72866454]
[1729770500937,5.87559,173.91,173.88,0.1]
[1729770501962,24.40425454,173.91,173.87,0.1]
[1729770502460,42.43103854,173.91,173.88,0.1]
[1729770503455,23.902374,173.91,173.88,0.1]
[1729770504860,29.652674,173.91,173.88,0.1]
[1729770506347,5.7477,173.98,173.91,0.1]
[1729770506549,4.2919886,173.97,173.94,18.62866454]
[1729770506868,18.52866454,174.0,173.95,18.62866454]
[1729770507068,0.12549,173.98,173.95,18.62866454]
[1729770508164,5.7461,174.03,173.97,18.62866454]
[1729770508361,0.12549,174.01,173.98,18.52866454]
[1729770508550,0.12549,174.02,173.98,18.52866454]
[1729770508747,0.12549,174.0,173.98,18.52866454]
[1729770508952,0.12549,174.0,173.92,16.2008]
[1729770508953,6.2306061,174.04,173.99,18.72866454]
[1729770509154,4.2914698,174.03,173.99,18.62866454]
[1729770509356,0.12549,174.03,173.99,18.72866454]
[1729770510069,6.2306061,174.04,173.99,18.72866454]
[1729770510249,24.29158502,174.03,173.99,18.72866454]
[1729770510455,20.0,174.03,173.99,18.72866454]
[1729770511968,20.0,174.03,173.99,0.2]
[1729770512776,20.0,174.03,173.99,18.72866454]
[1729770513256,20.0,174.03,173.99,0.2]
[1729770514059,25.7461,174.03,173.99,0.2]
[1729770514945,0.12549,173.99,173.96,0.1]
[1729770515149,18.65415454,173.99,173.96,0.1]
[1729770516671,24.40175454,173.99,173.96,0.1]
[1729770517162,5.87309,173.99,173.96,0.1]
[1729770517558,24.40175454,173.99,173.96,0.1]
[1729770518671,18.52866454,173.98,173.95,0.1]
[1729770519170,24.40175454,173.99,173.96,0.1]
[1729770520072,20.0,173.96,173.92,0.2]
[1729770520454,5.7485,173.96,173.93,0.1]
[1729770520773,5.7485,173.96,173.94,0.1]
[1729770523065,5.87359,173.97,173.94,0.1]
[1729770523259,20.0,173.98,173.94,0.2]
[1729770523462,24.27606454,173.99,173.96,0.1]
[1729770524571,5.7474,173.99,173.96,0.1]
[1729770527376,20.0,173.99,173.96,0.1]
[1729770529166,24.40125454,174.0,173.97,0.1]
[1729770529167,20.0,174.0,173.97,0.1]
[1729770529462,18.52866454,174.02,173.98,0.1]
[1729770529463,25.7468,174.01,173.98,0.1]
[1729770531177,25.7468,174.01,173.98,0.2]
[1729770532281,25.7464,174.02,173.99,0.2]
[1729770532785,44.27506454,174.02,173.99,0.2]
[1729770532988,44.27506454,174.02,173.99,0.1]
[1729770533862,44.27506454,174.02,173.99,0.2]
[1729770534180,25.7464,174.02,173.99,0.2]
[1729770535581,25.7464,174.02,173.99,0.1]
[1729770535881,25.7464,174.02,173.99,0.2]
[1729770536556,44.27506454,174.02,173.99,0.2]
[1729770536974,44.27506454,174.02,173.99,0.1]
[1729770537479,44.27506454,174.02,173.99,0.2]
[1729770538380,25.7464,174.02,173.99,0.2]
[1729770538883,6.2304061,174.04,174.01,0.2]
[1729770539270,24.75907064,174.04,174.01,0.1]
[1729770539666,24.75907064,174.04,174.01,0.2]
[1729770539972,24.75907064,174.04,174.02,0.1]
[1729770540886,24.75907064,174.04,174.01,0.1]
[1729770541077,18.52866454,174.03,174.01,0.1]
[1729770541473,18.52866454,174.03,174.02,0.1]
[1729770541673,0.12549,174.03,174.02,0.1]
[1729770541990,5.87159,174.03,174.02,0.1]
[1729770542166,5.87159,174.03,174.0,0.2]
[1729770542366,5.87159,174.03,174.02,0.1]
[1729770543896,24.40025454,174.03,174.02,0.1]
[1729770544081,5.87159,174.03,174.02,0.1]
[1729770544996,5.87159,174.03,174.0,0.2]
[1729770545288,5.87159,174.03,174.02,0.1]
[1729770545786,15.13592227,174.03,174.01,0.1]
[1729770545979,15.13592227,174.03,173.99,0.1]
[1729770545980,24.40025454,174.03,174.0,0.1]
[1729770546180,24.40025454,174.03,174.01,0.1]
[1729770546375,24.40025454,174.03,174.0,0.1]
[1729770546583,24.40025454,174.03,174.01,0.1]
[1729770546770,0.12549,174.01,173.99,0.1]
[1729770546975,18.52866454,174.0,173.99,0.1]
[1729770547279,0.12549,173.99,173.97,0.1]
[1729770547469,18.52866454,173.98,173.95,0.2]
[1729770547670,18.52866454,173.98,173.95,0.1]
[1729770548092,5.7481,173.97,173.95,0.1]
[1729770548677,5.7481,173.97,173.95,0.2]
[1729770548976,5.7481,173.97,173.96,0.1]
[1729770549187,5.7481,173.97,173.95,0.2]
[1729770549375,5.7481,173.97,173.96,0.1]
[1729770549895,5.7477,173.98,173.96,0.1]
[1729770550083,16.2073,174.02,173.98,0.1]
[1729770550084,25.7467,174.01,173.98,0.1]
[1729770550395,25.7467,174.01,173.99,0.1]
[1729770550396,22.94977316,174.0,173.99,0.1]
[1729770550600,22.94977316,174.0,173.97,0.2]
[1729770550895,18.65415454,174.0,173.98,0.1]
[1729770551075,18.65415454,174.0,173.97,0.1]
[1729770551275,18.65415454,174.0,173.94,18.52866454]
[1729770551276,24.40145454,174.0,173.98,0.2]
[1729770552488,24.40145454,174.0,173.97,0.2]
[1729770552898,0.12549,173.99,173.97,0.1]
[1729770553102,24.40175454,173.99,173.97,0.1]
[1729770553783,4.30194006,173.98,173.97,0.1]
[1729770553982,5.87359,173.97,173.95,0.1]
[1729770554175,24.40225454,173.97,173.94,0.2]
[1729770554491,24.40225454,173.97,173.96,0.1]
[1729770554794,5.87359,173.97,173.96,0.1]
[1729770555095,10.17566927,173.97,173.96,0.1]
[1729770555483,38.52866454,174.01,173.97,0.2]
[1729770555785,0.12549,173.99,173.97,0.1]
[1729770556090,10.17505023,173.98,173.97,0.1]
[1729770556294,5.87319,173.98,173.97,0.1]
[1729770556980,0.12549,173.98,173.97,0.1]
[1729770558099,5.87319,173.98,173.97,0.1]
[1729770558268,48.17873854,173.98,173.97,0.1]
[1729770558475,52.4811496,173.98,173.97,0.1]
[1729770559699,52.4814208,173.98,173.97,0.1]
[1729770560909,33.95275626,173.98,173.97,0.1]
[1729770561497,0.12549,173.97,173.96,0.1]
[1729770562201,5.87359,173.97,173.96,0.1]
[1729770562701,5.7477,173.99,173.96,0.2]
[1729770562878,4.30272502,173.98,173.96,0.2]
[1729770563082,0.12549,173.98,173.96,0.2]
[1729770563297,0.12549,173.98,173.96,0.1]
[1729770563503,0.12549,173.98,173.97,0.1]
[1729770563676,4.4283649,173.98,173.97,0.1]
[1729770564082,10.1760649,173.98,173.96,0.1]
[1729770564292,5.87319,173.98,173.96,0.1]
[1729770564497,5.87319,173.98,173.9,15.9046]
[1729770564498,5.7477,173.98,173.97,0.2]
[1729770564681,4.30297965,173.98,173.97,0.2]
[1729770565798,4.30297965,173.98,173.97,0.1]
[1729770566008,4.30297965,173.98,173.97,0.2]
[1729770566695,4.30297965,173.98,173.97,0.1]
[1729770566903,4.30297965,173.98,173.97,0.2]
[1729770567098,10.05077965,173.98,173.97,0.1]
[1729770567305,10.05077965,173.98,173.96,0.2]
[1729770567502,5.7478,173.98,173.96,0.2]
[1729770567682,24.27646454,173.98,173.96,0.1]
[1729770567889,4.3046301,173.97,173.96,0.1]
[1729770568603,0.12549,173.96,173.95,0.1]
[1729770568791,62.55652854,173.96,173.91,0.2]
[1729770568989,0.12549,173.93,173.9,0.1]
[1729770569187,44.40375454,173.93,173.91,0.1]
[1729770569906,44.40375454,173.93,173.9,0.1]
[1729770570105,44.40375454,173.93,173.91,0.1]
[1729770570688,0.12549,173.91,173.9,0.1]
[1729770570917,18.65415454,173.91,173.89,0.1]
[1729770571089,0.12549,173.89,173.87,0.2]
[1729770571905,0.12549,173.89,173.88,0.1]
[1729770572606,0.12549,173.89,173.87,0.2]
[1729770573186,0.12549,173.89,173.88,0.1]
[1729770574413,0.12549,173.89,173.87,0.2]
[1729770574615,0.12549,173.89,173.88,0.1]
[1729770576112,18.52866454,173.92,173.89,0.1]
[1729770576297,20.0,173.91,173.89,0.1]
[1729770576613,20.0,173.91,173.89,0.2]
[1729770576989,20.0,173.91,173.89,0.1]
[1729770577207,38.52866454,173.91,173.89,0.1]
[1729770577711,0.12549,173.89,173.87,0.1]
[1729770578290,42.43103854,173.89,173.87,0.1]
[1729770578618,42.43103854,173.89,173.86,0.2]
[1729770578797,42.43103854,173.89,173.87,0.1]
[1729770579502,42.43103854,173.89,173.86,0.2]
[1729770579708,48.18183854,173.89,173.87,0.1]
[1729770580014,29.653174,173.89,173.88,0.1]
[1729770580214,29.653174,173.89,173.87,0.1]
[1729770581810,23.902374,173.89,173.88,0.1]
[1729770582396,0.12549,173.88,173.84,0.2]
[1729770582600,20.12549,173.86,173.84,0.1]
[1729770583097,0.12549,173.86,173.84,0.2]
[1729770583613,0.12549,173.86,173.85,0.1]
[1729770587514,0.12549,173.86,173.83,0.1]
[1729770587706,5.87719,173.86,173.83,0.1]
[1729770587907,5.87719,173.86,173.83,0.2]
[1729770588109,5.87719,173.86,173.84,0.1]
[1729770588419,0.12549,173.84,173.83,0.1]
[1729770590396,0.12549,173.81,173.79,0.1]
[1729770590718,18.65415454,173.81,173.79,0.1]
[1729770591622,42.43103854,173.81,173.8,0.1]
[1729770591817,23.902374,173.81,173.8,0.1]
[1729770592121,20.0,173.83,173.82,0.1]
[1729770592320,16.163,173.87,173.85,0.1]
[1729770592524,20.0,173.86,173.85,0.1]
[1729770592821,38.65415454,173.86,173.85,0.1]
[1729770593404,62.43103854,173.86,173.85,0.1]
[1729770593711,44.28036454,173.86,173.85,0.1]
[1729770594423,44.40585454,173.86,173.85,0.1]
[1729770594924,68.18273854,173.86,173.85,0.1]
[1729770597723,43.902374,173.86,173.85,0.1]
[1729770598719,20.12549,173.86,173.85,0.1]
[1729770598921,48.30692854,173.9,173.87,0.1]
[1729770599312,62.55652854,173.88,173.87,0.1]
[1729770600024,20.25098,173.87,173.85,0.1]
[1729770600208,62.43103854,173.86,173.85,0.1]
[1729770600409,0.25098,173.85,173.83,0.1]
[1729770600611,18.52866454,173.84,173.83,0.1]